bitfinex-derivatives/quotes_BTCF0:USTF0_20250903
["timestamp","ask_amount","ask_price","bid_price","bid_amount"]
[1756915072467,0.10565636,112330.0,112320.0,1.21080408]
[1756915072648,0.10555636,112330.0,112320.0,1.21080408]
[1756915073459,0.10655636,112330.0,112320.0,1.21080408]
[1756915073957,0.57243204,112330.0,112320.0,1.62852204]
[1756915074364,0.59315435,112330.0,112320.0,1.62852204]
[1756915074564,0.59315435,112330.0,112320.0,0.78580204]
[1756915074758,0.14643,112320.0,112310.0,0.62450257]
[1756915075063,0.63999414,112320.0,112310.0,1.89156461]
[1756915075561,0.63999414,112320.0,112310.0,1.46648257]
[1756915075762,0.63999414,112320.0,112310.0,0.62440257]
[1756915075965,1.33756678,112320.0,112310.0,1.46640257]
[1756915076163,0.50347203,112320.0,112310.0,1.46640257]
[1756915076353,0.92847407,112320.0,112310.0,1.46640257]
[1756915076550,0.92847407,112320.0,112310.0,0.62440257]
[1756915076754,0.92947407,112320.0,112310.0,1.46632257]
[1756915076956,0.92947407,112320.0,112310.0,1.89132461]
[1756915077163,0.92947407,112320.0,112310.0,0.62440257]
[1756915077364,1.29072699,112320.0,112310.0,1.46612257]
[1756915077558,1.33856042,112320.0,112310.0,1.46612257]
[1756915077759,1.29172699,112320.0,112310.0,1.46632257]
[1756915077960,0.86672495,112320.0,112310.0,1.46632257]
[1756915078169,1.29172699,112320.0,112310.0,1.46632257]
[1756915078656,1.29372699,112320.0,112310.0,1.46632257]
[1756915079056,1.29472699,112320.0,112310.0,1.46632257]
[1756915079260,1.40552699,112320.0,112310.0,0.2638]
[1756915079456,1.40552699,112320.0,112300.0,0.0001]
[1756915079457,0.14643,112310.0,112300.0,0.0001]
[1756915079661,0.14643,112300.0,112290.0,0.6247]
[1756915079867,1.08093071,112300.0,112290.0,1.46628]
[1756915080074,1.08330953,112300.0,112290.0,1.46628]
[1756915080366,0.23330545,112300.0,112290.0,1.89128204]
[1756915080964,0.16715231,112300.0,112290.0,1.89128204]
[1756915081162,0.21497982,112300.0,112290.0,1.89128204]
[1756915081462,0.12620982,112300.0,112290.0,2.13086793]
[1756915081971,0.06854982,112300.0,112290.0,2.13086793]
[1756915082163,0.12720982,112300.0,112290.0,2.13086793]
[1756915082670,0.06954982,112300.0,112290.0,2.38086793]
[1756915083474,0.02172231,112300.0,112290.0,2.31019097]
[1756915083869,0.07938231,112300.0,112290.0,3.5984]
[1756915084069,0.07938231,112300.0,112290.0,4.19231097]
[1756915084369,0.02172231,112300.0,112290.0,4.19231097]
[1756915088575,0.02172231,112300.0,112290.0,4.19331097]
[1756915088768,0.02072231,112300.0,112290.0,4.19331097]
[1756915090671,0.02072231,112300.0,112290.0,3.6884336]
[1756915090871,0.02072231,112300.0,112290.0,4.19331097]
[1756915091268,0.02072231,112300.0,112290.0,4.28234457]
[1756915091774,0.02072231,112300.0,112290.0,4.19331097]
[1756915092376,0.02072231,112300.0,112290.0,3.35163097]
[1756915092571,0.02072231,112300.0,112290.0,4.19231097]
[1756915094170,0.02072231,112300.0,112290.0,3.35163097]
[1756915094571,0.07742231,112300.0,112290.0,4.19211097]
[1756915095273,0.02072231,112300.0,112290.0,4.19211097]
[1756915095772,0.02072231,112300.0,112290.0,3.35163097]
[1756915096079,0.02072231,112300.0,112290.0,4.19211097]
[1756915096274,0.02072231,112300.0,112290.0,3.35163097]
[1756915096475,0.02072231,112300.0,112290.0,4.19175097]
[1756915096681,0.02072231,112300.0,112290.0,4.19163097]
[1756915096880,0.02072231,112300.0,112290.0,4.28066447]
[1756915097181,0.05766,112320.0,112310.0,0.17231651]
[1756915097376,0.05766,112320.0,112310.0,2.32766748]
[1756915097579,0.05766,112330.0,112310.0,2.32766748]
[1756915097883,0.14725,112330.0,112320.0,0.95471097]
[1756915098674,0.05766,112330.0,112320.0,0.95471097]
[1756915098975,0.14825,112330.0,112320.0,0.95471097]
[1756915100582,0.14925,112330.0,112320.0,0.95471097]
[1756915101682,0.14925,112330.0,112320.0,0.92750323]
[1756915102580,0.14925,112330.0,112320.0,1.66652297]
[1756915103082,0.05966,112330.0,112320.0,1.66652297]
[1756915104284,0.05966,112330.0,112320.0,2.50512297]
[1756915104671,0.05966,112330.0,112320.0,1.93841974]
[1756915105171,0.05966,112330.0,112320.0,2.50512297]
[1756915105687,0.05966,112330.0,112320.0,1.49420646]
[1756915105896,0.05966,112330.0,112320.0,2.33244646]
[1756915106389,0.05966,112330.0,112320.0,1.49420646]
[1756915106578,0.05966,112330.0,112320.0,2.33244646]
[1756915106884,0.05966,112330.0,112320.0,1.76574323]
[1756915107777,0.05966,112330.0,112320.0,3.64742323]
[1756915108187,0.05966,112330.0,112320.0,4.21412646]
[1756915108781,0.05966,112330.0,112320.0,3.08072]
[1756915108982,0.0802818,112330.0,112320.0,3.37588646]
[1756915109283,0.0802818,112330.0,112320.0,3.07976]
[1756915109588,0.0802818,112330.0,112320.0,3.64646323]
[1756915112494,0.0802818,112330.0,112320.0,4.21316646]
[1756915113494,0.0792818,112330.0,112320.0,4.21612646]
[1756915114287,0.0782818,112330.0,112320.0,4.21612646]
[1756915116087,0.0782818,112330.0,112320.0,4.21512646]
[1756915116593,0.0782818,112330.0,112320.0,3.37884646]
[1756915116796,0.0782818,112330.0,112320.0,3.64802323]
[1756915117691,0.0782818,112330.0,112320.0,3.08132]
[1756915117995,0.0782818,112330.0,112320.0,3.64774323]
[1756915120495,0.0782818,112330.0,112320.0,4.21444646]
[1756915121297,0.0782818,112330.0,112320.0,3.08104]
[1756915121598,0.0782818,112330.0,112320.0,4.21444646]
[1756915121803,0.0782818,112330.0,112320.0,3.08104]
[1756915122204,0.0782818,112330.0,112320.0,3.64774323]
[1756915122505,0.0782818,112330.0,112320.0,4.21444646]
[1756915124504,0.0782818,112330.0,112320.0,3.37884646]
[1756915124704,0.0782818,112330.0,112320.0,4.22036646]
[1756915125210,0.0782818,112330.0,112320.0,3.65366323]
[1756915128313,0.0782818,112330.0,112320.0,2.81214323]
[1756915128511,0.37610931,112330.0,112320.0,3.08988]
[1756915128707,0.39205612,112330.0,112320.0,3.08988]
[1756915129419,0.37635693,112330.0,112320.0,3.08988]
[1756915129618,0.3282818,112330.0,112320.0,3.65658323]
[1756915129919,0.3292818,112330.0,112320.0,3.65658323]
[1756915130219,0.3302818,112330.0,112320.0,3.65658323]
[1756915130418,0.37734856,112330.0,112320.0,3.65658323]
[1756915130620,0.38034856,112330.0,112320.0,3.65658323]
[1756915131018,0.3322818,112330.0,112320.0,3.65658323]
[1756915131215,0.39605612,112330.0,112320.0,3.65658323]
[1756915131421,0.3322818,112330.0,112320.0,3.08988]
[1756915133326,0.39605612,112330.0,112320.0,3.08988]
[1756915136128,0.3322818,112330.0,112320.0,2.24544]
[1756915136425,0.3322818,112330.0,112320.0,3.08744]
[1756915137325,0.3322818,112330.0,112320.0,3.08448]
[1756915138029,0.38030444,112330.0,112320.0,3.08448]
[1756915138827,0.38030444,112330.0,112320.0,3.08392]
[1756915139325,0.13030444,112330.0,112320.0,3.08392]
[1756915140125,0.13030444,112330.0,112320.0,2.24248]
[1756915140426,0.13030444,112330.0,112320.0,3.08376]
[1756915142332,0.13030444,112330.0,112320.0,2.24248]
[1756915142532,0.13030444,112330.0,112320.0,3.08312]
[1756915143431,0.55547068,112330.0,112320.0,3.50828624]
[1756915144133,0.55607775,112330.0,112320.0,3.50828624]
[1756915144728,0.13091151,112330.0,112320.0,3.50828624]
[1756915145029,0.13091151,112330.0,112320.0,3.93345248]
[1756915145434,0.13091151,112330.0,112320.0,3.08312]
[1756915146431,0.13091151,112330.0,112320.0,3.93345248]
[1756915149526,0.13091151,112330.0,112320.0,3.08312]
[1756915149836,0.13091151,112330.0,112320.0,3.93345248]
[1756915151541,0.13091151,112330.0,112320.0,3.08312]
[1756915151741,0.13091151,112330.0,112320.0,3.93345248]
[1756915155740,0.13091151,112330.0,112320.0,3.08312]
[1756915155942,0.13091151,112330.0,112320.0,3.93345248]
[1756915157443,0.07325151,112330.0,112320.0,4.60861872]
[1756915157745,0.07325151,112330.0,112320.0,4.18153248]
[1756915158136,0.02522887,112330.0,112320.0,4.18153248]
[1756915158336,0.05202264,112330.0,112320.0,4.18153248]
[1756915158644,0.07225151,112330.0,112320.0,4.18153248]
[1756915158938,0.07125151,112330.0,112320.0,4.18153248]
[1756915159137,0.07125151,112330.0,112320.0,4.18445248]
[1756915159338,0.02322887,112330.0,112320.0,4.18445248]
[1756915159741,0.02322887,112330.0,112320.0,3.33412]
[1756915159938,0.02322887,112330.0,112320.0,4.18445248]
[1756915161234,0.02322887,112330.0,112320.0,4.60961872]
[1756915162037,0.02322887,112330.0,112320.0,2.4954]
[1756915162241,0.02322887,112330.0,112320.0,4.60901872]
[1756915163447,0.02122887,112330.0,112320.0,4.60901872]
[1756915163652,0.12094151,112340.0,112320.0,4.60901872]
[1756915163943,0.21307151,112340.0,112330.0,2.04897248]
[1756915164847,0.12094151,112340.0,112330.0,2.04897248]
[1756915165148,0.12094151,112340.0,112330.0,2.04861248]
[1756915165642,0.21307151,112340.0,112330.0,0.3608]
[1756915165842,0.21307151,112340.0,112330.0,1.62308624]
[1756915166048,0.21307151,112340.0,112330.0,1.62292624]
[1756915166649,0.21407151,112340.0,112330.0,1.62292624]
[1756915166851,0.21507151,112340.0,112330.0,0.78596624]
[1756915167353,0.21507151,112340.0,112330.0,1.1982]
[1756915167556,0.21507151,112340.0,112330.0,1.62336624]
[1756915168149,0.21507151,112340.0,112330.0,1.19812]
[1756915168354,1.26738135,112340.0,112330.0,1.20164]
[1756915168649,1.33115567,112340.0,112330.0,0.3608]
[1756915168856,1.26738135,112340.0,112330.0,0.3608]
[1756915169049,1.33115567,112340.0,112320.0,2.26652455]
[1756915169350,0.09971708,112330.0,112320.0,2.69169079]
[1756915169654,0.54611219,112330.0,112320.0,3.53227079]
[1756915172549,0.54611219,112330.0,112320.0,2.69159079]
[1756915172750,0.54611219,112330.0,112320.0,3.53167079]
[1756915173051,0.54611219,112330.0,112320.0,3.52871079]
[1756915173657,0.12094595,112330.0,112320.0,3.95387703]
[1756915174259,0.12094595,112330.0,112320.0,3.95375703]
[1756915178461,0.06925595,112330.0,112320.0,3.95375703]
[1756915178651,0.10026708,112330.0,112320.0,3.95375703]
[1756915178854,0.12149595,112330.0,112320.0,3.95375703]
[1756915179054,0.12149595,112330.0,112320.0,3.11367703]
[1756915179257,0.12149595,112330.0,112320.0,3.95223703]
[1756915180350,0.06925595,112330.0,112320.0,3.95223703]
[1756915180555,0.04802708,112330.0,112320.0,3.95223703]
[1756915180754,0.12149595,112330.0,112320.0,3.95223703]
[1756915181662,0.12149595,112330.0,112320.0,3.10190455]
[1756915181864,0.12149595,112330.0,112320.0,3.95223703]
[1756915182162,0.12149595,112330.0,112320.0,3.95195703]
[1756915184165,0.12149595,112330.0,112320.0,3.10162455]
[1756915184364,0.12149595,112330.0,112320.0,3.11367703]
[1756915184664,0.12149595,112330.0,112320.0,3.95107703]
[1756915184964,0.12149595,112330.0,112320.0,3.11367703]
[1756915185165,0.54666219,112330.0,112320.0,2.24232]
[1756915185364,0.54666219,112330.0,112320.0,3.50484624]
[1756915188467,0.54666219,112330.0,112320.0,3.07968]
[1756915188766,0.54666219,112330.0,112320.0,3.50484624]
[1756915189066,0.54667254,112330.0,112320.0,3.50484624]
[1756915189257,0.07347922,112330.0,112320.0,3.50480624]
[1756915189453,0.49864546,112330.0,112320.0,3.50480624]
[1756915190869,0.07347922,112330.0,112320.0,3.50480624]
[1756915191071,0.07347922,112330.0,112320.0,3.76860624]
[1756915191366,0.49864546,112330.0,112320.0,3.50480624]
[1756915191872,0.49864546,112330.0,112320.0,2.66744624]
[1756915192070,0.07347922,112330.0,112320.0,3.50340624]
[1756915192263,0.49864546,112330.0,112320.0,3.50340624]
[1756915192465,0.54668038,112330.0,112320.0,3.50340624]
[1756915192662,0.54668038,112330.0,112320.0,3.07824]
[1756915192972,0.54668038,112330.0,112320.0,3.50340624]
[1756915193771,0.12151414,112330.0,112320.0,3.50340624]
[1756915193969,0.54668038,112330.0,112320.0,3.50340624]
[1756915195066,0.54668038,112330.0,112320.0,3.50268624]
[1756915195664,0.12151414,112330.0,112320.0,3.07752]
[1756915195869,0.54668038,112330.0,112320.0,3.50268624]
[1756915196270,0.12151414,112330.0,112320.0,3.50268624]
[1756915196470,0.54668038,112330.0,112320.0,3.50268624]
[1756915196670,0.54668925,112330.0,112320.0,3.50260624]
[1756915196869,0.12152301,112330.0,112320.0,3.50260624]
[1756915197071,0.54668925,112330.0,112320.0,3.50260624]
[1756915197271,0.12152301,112330.0,112320.0,3.50260624]
[1756915197469,0.54668925,112330.0,112320.0,3.50260624]
[1756915198470,0.54668925,112330.0,112320.0,2.66744624]
[1756915198670,0.54668925,112330.0,112320.0,3.50196624]
[1756915198874,0.54668925,112330.0,112320.0,1.62028624]
[1756915199771,0.07348809,112330.0,112320.0,1.62028624]
[1756915200077,0.49865433,112330.0,112320.0,1.62028624]
[1756915200576,0.05224,112330.0,112320.0,1.19512]
[1756915200975,0.12161553,112330.0,112320.0,1.19512]
[1756915201769,0.05224,112330.0,112320.0,1.19512]
[1756915202873,0.05324,112330.0,112320.0,1.19512]
[1756915203274,0.001,112330.0,112320.0,1.19512]
[1756915203975,0.14084,112330.0,112320.0,0.3606]
[1756915204181,0.14084,112330.0,112320.0,1.19444]
[1756915204663,0.05324,112330.0,112320.0,1.19444]
[1756915204866,0.05324,112330.0,112320.0,0.36356]
[1756915205072,0.001,112330.0,112320.0,1.19764]
[1756915205273,0.001,112330.0,112320.0,1.44764]
[1756915206269,0.02231528,112330.0,112320.0,1.44764]
[1756915207276,0.02231528,112330.0,112320.0,1.53665]
[1756915207578,0.02131528,112330.0,112320.0,0.61356]
[1756915207771,0.02131528,112330.0,112320.0,1.44844]
[1756915209578,0.02131528,112330.0,112320.0,0.61356]
[1756915209777,0.02131528,112330.0,112320.0,1.44812]
[1756915211772,0.02131528,112330.0,112320.0,1.44756]
[1756915211976,0.02131528,112330.0,112320.0,1.4474]
[1756915212180,0.02131528,112330.0,112320.0,0.61356]
[1756915212372,0.02131528,112330.0,112320.0,1.4474]
[1756915212570,0.02131528,112330.0,112320.0,1.44724]
[1756915214178,0.02131528,112330.0,112320.0,1.53625]
[1756915214582,0.02049667,112330.0,112320.0,1.53625]
[1756915214778,0.10585025,112350.0,112320.0,1.53593]
[1756915214979,0.10575025,112350.0,112340.0,0.7216]
[1756915215174,0.10575025,112350.0,112340.0,1.55484]
[1756915216083,0.10775025,112350.0,112340.0,1.55484]
[1756915216783,0.10975025,112350.0,112340.0,1.55484]
[1756915216985,0.0617,112350.0,112340.0,1.55484]
[1756915217682,0.005,112350.0,112340.0,1.80428]
[1756915218279,0.005,112350.0,112340.0,0.9716]
[1756915218486,0.005,112350.0,112340.0,1.80416]
[1756915218785,0.005,112350.0,112340.0,2.93663096]
[1756915218979,0.005,112350.0,112340.0,2.10415096]
[1756915219181,0.005,112350.0,112340.0,2.93643096]
[1756915219381,0.05656,112350.0,112340.0,2.93643096]
[1756915219778,0.05656,112350.0,112340.0,1.53787548]
[1756915219982,0.05456,112350.0,112340.0,1.53787548]
[1756915220182,0.05456,112350.0,112340.0,2.10415096]
[1756915220387,0.14452,112350.0,112340.0,2.12003548]
[1756915220688,0.39452,112350.0,112340.0,1.28787548]
[1756915220890,0.39452,112350.0,112340.0,2.12075548]
[1756915221090,0.39252,112350.0,112340.0,2.12075548]
[1756915221392,0.39252,112350.0,112340.0,2.12091548]
[1756915221781,0.39252,112350.0,112340.0,2.12387548]
[1756915222478,0.39252,112350.0,112340.0,1.55748]
[1756915222683,0.39252,112350.0,112340.0,2.12375548]
[1756915223083,0.44057025,112350.0,112340.0,2.12351548]
[1756915223280,0.44057025,112350.0,112340.0,1.55724]
[1756915223490,0.44057025,112350.0,112340.0,2.12351548]
[1756915224693,0.44157025,112350.0,112340.0,2.12351548]
[1756915225187,0.39452,112350.0,112340.0,2.12351548]
[1756915225384,0.39452,112350.0,112340.0,0.72456]
[1756915225589,0.39452,112350.0,112340.0,2.12351548]
[1756915226194,0.458587,112350.0,112340.0,2.12351548]
[1756915226592,0.4160073,112350.0,112340.0,2.12351548]
[1756915226793,0.4800743,112350.0,112340.0,2.12351548]
[1756915227600,0.4800743,112350.0,112340.0,2.12311548]
[1756915227892,0.4800743,112350.0,112340.0,2.12303548]
[1756915228598,0.4160073,112350.0,112340.0,2.12303548]
[1756915228894,0.12400206,112350.0,112340.0,2.12303548]
[1756915229597,0.0244873,112350.0,112340.0,2.68931096]
[1756915230098,0.17472283,112360.0,112340.0,2.93931096]
[1756915230291,0.17472283,112360.0,112350.0,1.51404197]
[1756915230504,0.11802283,112360.0,112350.0,1.51404197]
[1756915232393,0.11902283,112360.0,112350.0,1.51404197]
[1756915233502,0.17058283,112360.0,112350.0,1.51404197]
[1756915235301,0.17058283,112360.0,112350.0,1.21253101]
[1756915235302,0.26054283,112360.0,112350.0,1.21253101]
[1756915235599,0.26054283,112360.0,112350.0,1.77880649]
[1756915237202,0.26054283,112360.0,112350.0,1.78325649]
[1756915237707,0.17058283,112360.0,112350.0,2.34953197]
[1756915239706,0.11902283,112360.0,112350.0,2.34953197]
[1756915241602,0.11902283,112360.0,112350.0,2.59953197]
[1756915241905,0.16829283,112360.0,112350.0,2.59953197]
[1756915242207,0.18982914,112360.0,112350.0,2.59953197]
[1756915243806,0.18982914,112360.0,112350.0,4.48057197]
[1756915245002,0.11976107,112360.0,112350.0,4.48057197]
[1756915246206,0.11976107,112360.0,112350.0,4.23057197]
[1756915246705,0.07180631,112360.0,112350.0,4.23057197]
[1756915247108,0.10019476,112370.0,112350.0,4.23057197]
[1756915247302,0.18738476,112370.0,112360.0,1.49335096]
[1756915247904,0.10019476,112370.0,112360.0,1.49335096]
[1756915248305,0.04795476,112370.0,112360.0,1.49335096]
[1756915248506,0.09722476,112370.0,112360.0,1.49335096]
[1756915248908,0.09922476,112370.0,112360.0,2.32287096]
[1756915249208,0.05127,112370.0,112360.0,1.49335096]
[1756915249411,0.09922476,112370.0,112360.0,1.49335096]
[1756915249914,0.09922476,112370.0,112360.0,2.32343096]
[1756915250209,1.03919274,112410.0,112360.0,2.32343096]
[1756915250210,0.29662752,112420.0,112410.0,0.31014622]
[1756915250514,0.13646,112420.0,112410.0,1.6536817]
[1756915251014,0.13646,112420.0,112410.0,1.66576878]
[1756915251413,0.13946,112420.0,112410.0,1.66576878]
[1756915251608,0.14346,112420.0,112410.0,1.66576878]
[1756915251808,0.05627,112420.0,112410.0,1.66576878]
[1756915252007,0.007,112420.0,112410.0,1.66576878]
[1756915252309,0.003,112420.0,112410.0,1.66576878]
[1756915252509,0.05327,112420.0,112410.0,1.66576878]
[1756915252710,0.05327,112420.0,112410.0,1.73746323]
[1756915253114,0.05027,112420.0,112410.0,1.73746323]
[1756915253416,0.002,112420.0,112410.0,1.73746323]
[1756915254915,0.01,132100.0,112410.0,1.73746323]
[1756915255111,0.3608,112480.0,112460.0,0.12187548]
[1756915255317,0.1342975,112470.0,112460.0,1.39771548]
[1756915255515,0.3608,112480.0,112460.0,1.39767548]
[1756915255817,0.25,112470.0,112460.0,1.39767548]
[1756915256019,0.32025543,112470.0,112460.0,1.39767548]
[1756915256212,0.45448075,112470.0,112460.0,1.39767548]
[1756915257617,0.45948075,112470.0,112460.0,1.39767548]
[1756915258005,0.46648075,112470.0,112460.0,1.39767548]
[1756915259420,0.22782406,112470.0,112460.0,1.44955548]
[1756915263521,0.15756863,112470.0,112460.0,1.81035548]
[1756915263724,0.02334331,112470.0,112460.0,1.81035548]
[1756915264419,0.02334331,112470.0,112460.0,0.97895548]
[1756915264620,0.02334331,112470.0,112460.0,1.80883548]
[1756915264921,0.02334331,112470.0,112460.0,1.06470548]
[1756915265118,0.02334331,112470.0,112460.0,1.89450548]
[1756915265419,0.02334331,112470.0,112460.0,1.89442548]
[1756915265720,0.02334331,112470.0,112460.0,1.89434548]
[1756915267518,0.02334331,112470.0,112460.0,2.17620432]
[1756915269824,0.02334331,112470.0,112460.0,3.02302432]
[1756915270219,0.02334331,112470.0,112460.0,1.34656432]
[1756915270528,0.27334331,112470.0,112460.0,1.75161716]
[1756915270716,0.27334331,112470.0,112460.0,2.17568432]
[1756915270917,0.02334331,112470.0,112460.0,2.17568432]
[1756915271923,0.09397331,112470.0,112460.0,2.17568432]
[1756915272317,0.09397331,112470.0,112460.0,1.34656432]
[1756915272517,0.09397331,112470.0,112460.0,0.96707]
[1756915272719,0.09397331,112470.0,112460.0,1.81520432]
[1756915273230,0.14163178,112470.0,112460.0,1.81520432]
[1756915273429,0.09397331,112470.0,112460.0,2.17600432]
[1756915273929,0.02334331,112470.0,112460.0,2.17600432]
[1756915274124,0.02334331,112470.0,112460.0,2.17610432]
[1756915274327,0.07100178,112470.0,112460.0,2.17610432]
[1756915275625,0.07100178,112470.0,112460.0,3.02292432]
[1756915277428,0.07100178,112470.0,112460.0,3.02256432]
[1756915278323,0.02334331,112470.0,112460.0,3.02256432]
[1756915279226,0.08692339,112470.0,112460.0,3.02256432]
[1756915280430,0.76691047,112470.0,112460.0,0.96677]
[1756915280729,0.84639841,112470.0,112460.0,1.37058974]
[1756915280932,0.84639841,112470.0,112460.0,0.94652258]
[1756915281122,0.84639841,112470.0,112460.0,0.11748258]
[1756915281322,1.41616237,112470.0,112460.0,0.0001]
[1756915282436,1.37272237,112470.0,112460.0,0.0001]
[1756915282630,1.37272237,112470.0,112460.0,0.13114]
[1756915283137,0.94865521,112470.0,112460.0,0.13114]
[1756915283332,1.37272237,112470.0,112460.0,0.13114]
[1756915284036,1.12272237,112470.0,112460.0,0.55520716]
[1756915284937,1.12272237,112470.0,112460.0,0.13114]
[1756915286039,1.12272237,112470.0,112460.0,0.04957]
[1756915286239,1.12272237,112470.0,112460.0,0.0001]
[1756915286439,1.12272237,112470.0,112460.0,0.13114]
[1756915287142,1.84022953,112470.0,112460.0,0.0001]
[1756915287337,0.13038,112450.0,112440.0,1.6759]
[1756915287640,0.08028,112440.0,112430.0,1.35859598]
[1756915287841,0.5843117,112440.0,112430.0,1.35859598]
[1756915288039,0.5843117,112440.0,112430.0,2.20541598]
[1756915288341,0.16024454,112440.0,112430.0,2.20541598]
[1756915289641,0.16224454,112440.0,112430.0,2.20541598]
[1756915290343,0.16624454,112440.0,112430.0,2.20541598]
[1756915290553,0.16624454,112440.0,112430.0,1.78134882]
[1756915290754,0.16624454,112440.0,112430.0,2.20541598]
[1756915292256,0.08628,112440.0,112430.0,2.20541598]
[1756915292453,0.16624454,112440.0,112430.0,2.20541598]
[1756915293356,0.08628,112440.0,112430.0,2.20541598]
[1756915293952,0.51034716,112440.0,112430.0,1.78138882]
[1756915294152,0.5903117,112440.0,112430.0,1.37633598]
[1756915294352,1.75899648,112440.0,112430.0,0.10504882]
[1756915294550,1.83338162,112440.0,112430.0,0.93416882]
[1756915294749,1.83338162,112440.0,112430.0,0.10504882]
[1756915294952,1.36626446,112440.0,112430.0,0.10504882]
[1756915295258,0.9421973,112440.0,112430.0,0.52911598]
[1756915295449,0.22009762,112440.0,112430.0,0.52911598]
[1756915295648,0.22009762,112440.0,112430.0,0.10504882]
[1756915295849,0.22009762,112440.0,112430.0,0.52911598]
[1756915296047,0.13981762,112440.0,112430.0,1.37593598]
[1756915296250,0.21960375,112440.0,112430.0,1.37593598]
[1756915297761,0.29988375,112440.0,112430.0,0.95186882]
[1756915298058,0.29988375,112440.0,112430.0,1.37593598]
[1756915299664,0.21960375,112440.0,112430.0,1.37593598]
[1756915299964,0.08578613,112440.0,112430.0,1.37593598]
[1756915302166,0.18411613,112440.0,112430.0,0.95186882]
[1756915302370,0.18411613,112440.0,112430.0,1.37593598]
[1756915305671,0.18411613,112440.0,112430.0,2.20509598]
[1756915305967,0.60818329,112440.0,112430.0,1.37593598]
[1756915306168,0.60818329,112440.0,112430.0,2.20515598]
[1756915306376,0.52839716,112440.0,112430.0,1.37603598]
[1756915306668,0.52839716,112440.0,112430.0,2.20515598]
[1756915307366,0.18418088,112440.0,112430.0,2.20515598]
[1756915307768,0.10433,112440.0,112430.0,2.20515598]
[1756915308269,0.18418088,112440.0,112430.0,2.20515598]
[1756915308469,0.10433,112440.0,112430.0,2.20515598]
[1756915308869,0.10433,112440.0,112430.0,2.20511598]
[1756915309473,0.21562968,112440.0,112430.0,2.20511598]
[1756915309876,0.63969684,112440.0,112430.0,0.95192882]
[1756915310067,0.63969684,112440.0,112430.0,1.35829598]
[1756915311569,0.21562968,112440.0,112430.0,1.35829598]
[1756915311761,0.63969684,112440.0,112430.0,1.35829598]
[1756915312975,0.63969684,112440.0,112430.0,2.20511598]
[1756915313575,0.65835746,112440.0,112430.0,1.30388094]
[1756915313775,0.65835746,112440.0,112430.0,2.19201094]
[1756915313975,0.2342903,112440.0,112430.0,2.19201094]
[1756915314178,0.65835746,112440.0,112430.0,2.19201094]
[1756915314979,0.15654,112430.0,112420.0,0.58481653]
[1756915315271,0.15654,112410.0,112400.0,1.79375537]
[1756915315475,1.04006969,112410.0,112400.0,1.79375537]
[1756915315680,0.96125185,112410.0,112400.0,1.36968821]
[1756915315973,0.96125185,112410.0,112400.0,1.79375537]
[1756915316178,0.96125185,112410.0,112400.0,1.10995369]
[1756915316471,1.07326466,112410.0,112400.0,0.10107]
[1756915316679,1.20754618,112410.0,112400.0,0.10107]
[1756915316974,1.21154618,112410.0,112400.0,0.10107]
[1756915317567,1.21354618,112410.0,112400.0,0.10107]
[1756915317764,1.19488556,112410.0,112400.0,0.10107]
[1756915317985,1.19588556,112410.0,112400.0,0.10107]
[1756915318981,0.65980559,112410.0,112400.0,0.10107]
[1756915319175,1.08387275,112410.0,112400.0,0.10107]
[1756915319477,1.10333895,112410.0,112400.0,0.10107]
[1756915319875,1.10333895,112410.0,112400.0,0.05297765]
[1756915320183,1.18325247,112410.0,112400.0,0.05297765]
[1756915320483,2.01237247,112410.0,112400.0,0.05297765]
[1756915320683,0.15654,112400.0,112390.0,0.58481653]
[1756915320873,0.15654,112390.0,112380.0,0.93019]
[1756915321073,1.04078586,112390.0,112380.0,0.10107]
[1756915321276,1.09600905,112390.0,112380.0,0.68588653]
[1756915321478,0.78387679,112390.0,112380.0,0.68588653]
[1756915321774,0.85564811,112390.0,112380.0,0.68588653]
[1756915321977,0.85664811,112390.0,112380.0,0.68588653]
[1756915322380,1.5204702,112390.0,112370.0,0.0001]
[1756915322583,1.26096694,112380.0,112370.0,0.10117]
[1756915322774,0.61661105,112380.0,112370.0,0.10107]
[1756915323085,0.75517583,112380.0,112370.0,0.68588653]
[1756915323670,0.7754282,112380.0,112370.0,0.68588653]
[1756915323875,0.7754282,112380.0,112370.0,0.68688653]
[1756915324075,0.69562335,112380.0,112370.0,0.68688653]
[1756915324274,0.69562335,112380.0,112370.0,0.68664653]
[1756915324882,0.69562335,112380.0,112370.0,0.71282653]
[1756915324883,0.54008335,112380.0,112370.0,0.71282653]
[1756915325069,0.69662335,112380.0,112370.0,0.71282653]
[1756915325269,0.69662335,112380.0,112370.0,0.68664653]
[1756915325977,0.69662335,112380.0,112370.0,0.68564653]
[1756915329385,0.69662335,112380.0,112370.0,1.51484653]
[1756915329575,0.7764282,112380.0,112370.0,1.51484653]
[1756915333089,0.6198882,112380.0,112370.0,1.51484653]
[1756915333488,0.6748982,112380.0,112370.0,1.51484653]
[1756915333683,0.6748982,112380.0,112370.0,1.78424653]
[1756915335389,0.6748982,112380.0,112370.0,1.73614447]
[1756915335590,0.7732582,112380.0,112370.0,1.73614447]
[1756915335789,0.75714095,112380.0,112370.0,1.73614447]
[1756915337685,1.35068267,112380.0,112370.0,0.63754447]
[1756915337885,0.15337,112370.0,112360.0,1.00867]
[1756915338091,0.61344105,112370.0,112360.0,0.92616]
[1756915338298,0.61819192,112370.0,112360.0,1.51097653]
[1756915339190,0.61819192,112370.0,112360.0,1.51081653]
[1756915339698,0.61819192,112370.0,112360.0,1.51181653]
[1756915342793,0.61819192,112370.0,112360.0,0.927]
[1756915343095,0.61819192,112370.0,112360.0,1.51181653]
[1756915344193,0.61819192,112370.0,112360.0,2.07840852]
[1756915344396,0.65032197,112370.0,112360.0,2.07840852]
[1756915344790,0.53838707,112370.0,112360.0,2.07840852]
[1756915344995,0.53838707,112370.0,112360.0,1.51181653]
[1756915345200,0.53838707,112370.0,112360.0,2.07840852]
[1756915345498,1.10497906,112370.0,112360.0,0.68261653]
[1756915345798,1.10497906,112370.0,112360.0,1.51173653]
[1756915346296,0.53838707,112370.0,112360.0,1.51173653]
[1756915346493,0.65032197,112370.0,112360.0,1.51173653]
[1756915347197,1.21691396,112370.0,112360.0,0.68261653]
[1756915347398,1.35065852,112370.0,112360.0,1.51173653]
[1756915347898,0.42326653,112370.0,112360.0,1.51173653]
[1756915348099,0.87792362,112370.0,112360.0,1.43957845]
[1756915348396,0.42337793,112370.0,112360.0,2.15170696]
[1756915348592,0.39136451,112370.0,112360.0,2.15170696]
[1756915348791,0.39136451,112370.0,112360.0,1.58511497]
[1756915349096,0.29300451,112370.0,112360.0,2.40170696]
[1756915350002,0.27353831,112370.0,112360.0,2.40170696]
[1756915350298,0.27353831,112370.0,112360.0,1.83511497]
[1756915350495,0.27353831,112370.0,112360.0,1.32258696]
[1756915350792,0.27353831,112370.0,112360.0,0.75599497]
[1756915350793,0.63433831,112370.0,112360.0,0.75599497]